bitfinex-derivatives/quotes_BTCF0:USTF0_20260214
["timestamp","ask_amount","ask_price","bid_price","bid_amount"]
[1771034418300,0.014506,68973.0,68966.0,0.032027]
[1771034419199,0.014506,68973.0,68966.0,0.029027]
[1771034427099,0.029012,68973.0,68966.0,0.01452]
[1771034431611,0.014506,68972.0,68966.0,0.01452]
[1771034434410,0.014508,68965.0,68957.0,0.014509]
[1771034434912,0.014508,68963.0,68956.0,0.01452]
[1771034435219,0.1337217,68967.0,68947.0,0.13882463]
[1771034435220,0.01451,68956.0,68952.0,0.01452]
[1771034435817,0.02902,68956.0,68952.0,0.01452]
[1771034436222,0.01451,68956.0,68952.0,0.01452]
[1771034436426,0.01451,68955.0,68952.0,0.01452]
[1771034437519,0.01451,68954.0,68951.0,0.01452]
[1771034437906,0.01451,68953.0,68947.0,0.159591]
[1771034438217,0.014511,68951.0,68948.0,0.01452]
[1771034438612,0.014511,68949.0,68947.0,0.01452]
[1771034439510,0.014511,68951.0,68947.0,0.01452]
[1771034439912,0.014511,68950.0,68945.0,0.029032]
[1771034440315,0.014511,68950.0,68946.0,0.014512]
[1771034440521,0.014511,68950.0,68945.0,0.029032]
[1771034440915,0.014511,68950.0,68946.0,0.014512]
[1771034441524,0.014511,68950.0,68945.0,0.029032]
[1771034441716,0.01452,68954.0,68948.0,0.014511]
[1771034441912,0.014509,68960.0,68952.0,0.01451]
[1771034442222,0.029029,68960.0,68954.0,0.01451]
[1771034442733,0.014509,68959.0,68954.0,0.01451]
[1771034442926,0.029029,68960.0,68954.0,0.01451]
[1771034443120,0.029029,68960.0,68953.0,0.01451]
[1771034444217,0.01452,68960.0,68953.0,0.01451]
[1771034445230,0.01452,68959.0,68953.0,0.01451]
[1771034445425,0.01452,68959.0,68952.0,0.01451]
[1771034447931,0.01452,68959.0,68953.0,0.01451]
[1771034448530,0.029029,68959.0,68951.0,0.02903]
[1771034449233,0.029029,68959.0,68951.0,0.15274952]
[1771034449625,0.029029,68959.0,68951.0,0.02903]
[1771034449626,0.014509,68959.0,68951.0,0.02903]
[1771034449825,0.014509,68959.0,68951.0,0.04354]
[1771034450231,0.014509,68959.0,68951.0,0.02903]
[1771034450827,0.014509,68959.0,68951.0,0.04354]
[1771034451431,0.014509,68959.0,68951.0,0.02903]
[1771034452036,0.029029,68960.0,68951.0,0.02903]
[1771034452037,0.014509,68958.0,68951.0,0.02903]
[1771034453038,0.029029,68960.0,68951.0,0.01452]
[1771034453039,0.014509,68957.0,68951.0,0.01452]
[1771034453737,0.014509,68957.0,68951.0,0.01652]
[1771034453939,0.014509,68958.0,68951.0,0.01652]
[1771034454733,0.014509,68957.0,68951.0,0.01652]
[1771034455338,0.01451,68955.0,68951.0,0.01652]
[1771034455940,0.01451,68955.0,68951.0,0.01452]
[1771034457143,0.01451,68955.0,68946.0,0.014512]
[1771034457144,0.01451,68955.0,68949.0,0.01452]
[1771034458343,0.02902,68955.0,68949.0,0.01452]
[1771034458543,0.01451,68954.0,68949.0,0.01452]
[1771034460649,0.01451,68955.0,68949.0,0.029031]
[1771034461448,0.01451,68954.0,68949.0,0.01452]
[1771034462448,0.01451,68953.0,68949.0,0.01452]
[1771034462647,0.01451,68955.0,68949.0,0.029031]
[1771034463950,0.01451,68955.0,68949.0,0.043542]
[1771034464252,0.01451,68955.0,68949.0,0.029031]
[1771034464946,0.01451,68952.0,68949.0,0.01452]
[1771034465754,0.01451,68952.0,68947.0,0.01452]
[1771034466558,0.029029,68957.0,68950.0,0.014511]
[1771034466752,0.01451,68956.0,68951.0,0.014511]
[1771034466952,0.01452,68957.0,68951.0,0.014511]
[1771034467152,0.029029,68957.0,68951.0,0.014511]
[1771034468558,0.01452,68957.0,68951.0,0.029021]
[1771034469658,0.014509,68958.0,68951.0,0.02902]
[1771034469858,0.01452,68957.0,68951.0,0.01451]
[1771034471358,0.01452,68957.0,68951.0,0.02902]
[1771034471855,0.01452,68957.0,68951.0,0.01451]
[1771034473564,0.029029,68957.0,68950.0,0.01452]
[1771034473764,0.01451,68955.0,68950.0,0.01452]
[1771034473950,0.01451,68955.0,68949.0,0.01452]
[1771034474156,0.01451,68953.0,68949.0,0.01452]
[1771034474658,0.014511,68951.0,68943.0,0.159592]
[1771034474863,0.014511,68951.0,68945.0,0.014512]
[1771034475559,0.014511,68950.0,68945.0,0.014512]
[1771034475959,0.014511,68949.0,68944.0,0.01452]
[1771034476264,0.014512,68946.0,68944.0,0.01452]
[1771034476451,0.014512,68945.0,68944.0,0.01452]
[1771034476657,0.014512,68946.0,68944.0,0.01452]
[1771034476855,0.014512,68947.0,68944.0,0.01452]
[1771034477055,0.014511,68948.0,68944.0,0.01452]
[1771034477561,0.014512,68947.0,68944.0,0.01452]
[1771034477751,0.014511,68947.0,68944.0,0.01452]
[1771034477956,0.014512,68946.0,68944.0,0.01452]
[1771034479058,0.014511,68948.0,68944.0,0.01452]
[1771034479259,0.014511,68949.0,68944.0,0.01452]
[1771034479653,0.029022,68951.0,68944.0,0.01452]
[1771034479959,0.014511,68951.0,68944.0,0.01452]
[1771034480460,0.014511,68950.0,68944.0,0.01452]
[1771034480657,0.014511,68951.0,68944.0,0.01452]
[1771034480859,0.01451,68952.0,68944.0,0.01452]
[1771034481058,0.01452,68953.0,68946.0,0.014511]
[1771034481461,0.01452,68953.0,68945.0,0.014512]
[1771034481764,0.01452,68953.0,68944.0,0.01752]
[1771034482363,0.01452,68953.0,68944.0,0.01452]
[1771034482567,0.01451,68952.0,68945.0,0.003]
[1771034483468,0.014511,68951.0,68945.0,0.003]
[1771034483969,0.014511,68951.0,68944.0,0.029032]
[1771034484169,0.014511,68951.0,68944.0,0.033032]
[1771034484570,0.014511,68951.0,68945.0,0.004]
[1771034485270,0.014511,68951.0,68944.0,0.033032]
[1771034485672,0.014511,68951.0,68944.0,0.029032]
[1771034485868,0.014511,68951.0,68945.0,0.004]
[1771034487273,0.014511,68951.0,68944.0,0.041032]
[1771034487770,0.014511,68951.0,68944.0,0.029032]
[1771034487974,0.014511,68951.0,68945.0,0.011]
[1771034488474,0.014511,68951.0,68944.0,0.041032]
[1771034489175,0.014511,68951.0,68945.0,0.011]
[1771034490573,0.014511,68951.0,68944.0,0.029032]
[1771034490774,0.014511,68951.0,68944.0,0.041032]
[1771034491174,0.014511,68951.0,68944.0,0.029032]
[1771034491376,0.014511,68951.0,68945.0,0.011]
[1771034491777,0.014511,68951.0,68944.0,0.01452]
[1771034491976,0.014511,68951.0,68944.0,0.02652]
[1771034492477,0.014511,68950.0,68944.0,0.02652]
[1771034493179,0.014511,68951.0,68944.0,0.02652]
[1771034493480,0.014511,68951.0,68945.0,0.008]
[1771034493984,0.014511,68951.0,68944.0,0.029032]
[1771034494177,0.014511,68951.0,68944.0,0.02352]
[1771034494371,0.029022,68951.0,68944.0,0.02352]
[1771034494680,0.014511,68950.0,68945.0,0.008]
[1771034495278,0.014511,68950.0,68944.0,0.01452]
[1771034495478,0.014511,68950.0,68944.0,0.02352]
[1771034496980,0.014511,68950.0,68945.0,0.009]
[1771034497182,0.014511,68949.0,68945.0,0.009]
[1771034497384,0.014511,68949.0,68944.0,0.01452]
[1771034497577,0.014511,68949.0,68944.0,0.02352]
[1771034497971,0.014511,68947.0,68945.0,0.009]
[1771034498382,0.014511,68948.0,68945.0,0.009]
[1771034498582,0.014511,68948.0,68944.0,0.02452]
[1771034499782,0.029023,68947.0,68944.0,0.02452]
[1771034500087,0.014512,68945.0,68942.0,0.01452]
[1771034500386,0.014512,68942.0,68940.0,0.01452]
[1771034501272,0.014512,68942.0,68939.0,0.06505604]
[1771034501476,0.014513,68941.0,68934.0,0.00011873]
[1771034501683,0.014512,68942.0,68935.0,0.01452]
[1771034501987,0.014513,68940.0,68935.0,0.01452]
[1771034502387,0.014513,68942.0,68936.0,0.014514]
[1771034503181,0.014513,68941.0,68936.0,0.014514]
[1771034503381,0.014513,68941.0,68939.0,0.009]
[1771034504579,0.014513,68941.0,68936.0,0.023514]
[1771034504988,0.014513,68941.0,68939.0,0.01]
[1771034505485,0.014512,68943.0,68939.0,0.01]
[1771034506686,0.029032,68943.0,68938.0,0.014513]
[1771034507276,0.014512,68942.0,68939.0,0.009]
[1771034507786,0.014512,68942.0,68938.0,0.008]
[1771034508886,0.029032,68943.0,68938.0,0.008]
[1771034509187,0.01452,68943.0,68939.0,0.014513]
[1771034509391,0.01452,68943.0,68939.0,0.024513]
[1771034509988,0.01452,68943.0,68939.0,0.014513]
[1771034510686,0.01452,68943.0,68939.0,0.027513]
[1771034511188,0.01452,68943.0,68939.0,0.025513]
[1771034514492,0.01452,68943.0,68939.0,0.040026]
[1771034514682,0.01452,68943.0,68940.0,0.014513]
[1771034515489,0.01452,68943.0,68939.0,0.025513]
[1771034515490,0.01452,68943.0,68941.0,0.014513]
[1771034516489,0.01452,68943.0,68940.0,0.007]
[1771034516686,0.01452,68943.0,68941.0,0.006]
[1771034517390,0.10525731,68942.0,68935.0,0.01452]
[1771034517585,0.014512,68942.0,68934.0,0.01463273]
[1771034517889,0.014513,68940.0,68934.0,0.00011873]
[1771034518089,0.029033,68940.0,68934.0,0.00011873]
[1771034519088,0.029033,68940.0,68934.0,0.00511873]
[1771034519479,0.014513,68939.0,68934.0,0.00511873]
[1771034520696,0.014513,68939.0,68934.0,0.00011873]
[1771034520893,0.014513,68939.0,68934.0,0.00511873]
[1771034521293,0.014513,68938.0,68934.0,0.00511873]
[1771034521500,0.014513,68939.0,68934.0,0.00511873]
[1771034521687,0.01452,68940.0,68934.0,0.00511873]
[1771034521886,0.01452,68940.0,68935.0,0.014514]
[1771034522086,0.01452,68941.0,68935.0,0.014514]
[1771034523589,0.01452,68941.0,68936.0,0.014514]
[1771034525399,0.01452,68941.0,68937.0,0.014513]
[1771034525794,0.01452,68941.0,68936.0,0.014514]
[1771034525995,0.01852,68941.0,68936.0,0.014514]
[1771034526897,0.01452,68941.0,68935.0,0.014514]
[1771034527093,0.00011873,68940.0,68933.0,0.01452]
[1771034527296,0.00011873,68940.0,68935.0,0.014514]
[1771034528497,0.00011873,68940.0,68936.0,0.014514]
[1771034529194,0.00311873,68940.0,68936.0,0.014514]
[1771034529700,0.00311873,68940.0,68935.0,0.014514]
[1771034530298,0.00411873,68940.0,68935.0,0.014514]
[1771034530794,0.01452,68946.0,68940.0,0.014513]
[1771034530988,0.029032,68946.0,68939.0,0.014513]
[1771034531596,0.014512,68945.0,68938.0,0.014513]
[1771034531797,0.001,68940.0,68937.0,0.029033]
[1771034531992,0.014512,68945.0,68937.0,0.029033]
[1771034532198,0.014512,68945.0,68938.0,0.014513]
[1771034532494,0.00717318,79171.0,68938.0,0.014513]
[1771034532696,0.11052002,68966.0,68946.0,0.11006176]
[1771034532885,0.014508,68963.0,68954.0,0.01451]
[1771034533090,0.014508,68964.0,68954.0,0.01451]
[1771034533290,0.014508,68962.0,68954.0,0.01451]
[1771034533491,0.029028,68961.0,68954.0,0.01451]
[1771034533801,0.014509,68960.0,68952.0,0.02903]
[1771034534399,0.014509,68958.0,68952.0,0.01452]
[1771034534700,0.01451,68956.0,68952.0,0.01452]
[1771034534999,0.014509,68957.0,68952.0,0.01452]
[1771034535201,0.01451,68954.0,68946.0,0.014511]
[1771034535503,0.01451,68954.0,68944.0,0.014512]
[1771034535504,0.01451,68952.0,68947.0,0.01452]
[1771034536301,0.014511,68951.0,68947.0,0.01452]
[1771034536506,0.01451,68952.0,68946.0,0.008]
[1771034537001,0.01451,68952.0,68947.0,0.006]
[1771034537997,0.014511,68951.0,68947.0,0.006]
[1771034538304,0.014511,68951.0,68942.0,0.01452]
[1771034538305,0.014511,68948.0,68942.0,0.01452]
[1771034538601,0.014511,68949.0,68946.0,0.006]
[1771034539002,0.014511,68948.0,68942.0,0.01452]
[1771034539700,0.014511,68948.0,68946.0,0.005]
[1771034539901,0.014511,68947.0,68942.0,0.01452]
[1771034540400,0.014511,68948.0,68942.0,0.01452]
[1771034541305,0.019511,68948.0,68942.0,0.01452]
[1771034542901,0.01452,68951.0,68942.0,0.12458176]
[1771034543104,0.01452,68951.0,68944.0,0.014512]
[1771034543403,0.014512,68946.0,68942.0,0.01452]
[1771034543603,0.029024,68946.0,68943.0,9.99e-06]
[1771034543800,0.014512,68945.0,68942.0,0.01452]
[1771034544209,0.014511,68948.0,68942.0,0.01452]
[1771034544509,0.029022,68948.0,68942.0,0.01452]
[1771034544806,0.033022,68948.0,68941.0,0.01452]
[1771034545007,0.014511,68947.0,68941.0,0.01452]
[1771034545207,0.01,68945.0,68941.0,0.01452]
[1771034545708,0.014512,68946.0,68941.0,0.01452]
[1771034546208,0.024511,68948.0,68941.0,0.01452]
[1771034546406,0.014512,68947.0,68941.0,0.01452]
[1771034546908,0.01452,68951.0,68942.0,0.014512]
[1771034547109,0.014511,68949.0,68942.0,0.014512]
[1771034548002,0.01,68947.0,68942.0,0.014512]
[1771034548408,0.014511,68949.0,68942.0,0.014512]
[1771034548708,0.024511,68949.0,68942.0,0.014512]
[1771034549109,0.01,68947.0,68942.0,0.014512]
[1771034549911,0.029031,68949.0,68942.0,0.014512]
[1771034550096,0.029031,68949.0,68941.0,0.029032]
[1771034550808,0.029031,68952.0,68944.0,0.014512]
[1771034551010,0.029031,68952.0,68944.0,0.029032]
[1771034551210,0.003,68949.0,68944.0,0.01452]
[1771034551512,0.014511,68951.0,68944.0,0.029032]
[1771034552210,0.004,68949.0,68944.0,0.029032]
[1771034553711,0.004,68949.0,68945.0,0.014512]
[1771034554212,0.043541,68952.0,68945.0,0.014512]
[1771034554515,0.01451,68955.0,68946.0,0.12324254]
[1771034554709,0.01451,68954.0,68947.0,0.12325054]
[1771034555006,0.01451,68953.0,68947.0,0.01452]
[1771034555811,0.01451,68953.0,68947.0,0.01952]
[1771034557413,0.01451,68953.0,68947.0,0.02152]
[1771034558009,0.01451,68953.0,68947.0,0.01452]
[1771034558213,0.01451,68953.0,68947.0,0.02152]
[1771034558603,0.01451,68953.0,68947.0,0.01452]
[1771034558804,0.14512,68957.0,68951.0,0.01451]
[1771034559015,0.014508,68966.0,68950.0,0.09955725]
[1771034559016,0.029029,68960.0,68952.0,0.01452]
[1771034559311,0.014509,68959.0,68952.0,0.01452]
[1771034559613,0.014509,68958.0,68952.0,0.01452]
[1771034560801,0.01452,68960.0,68952.0,0.02252]
[1771034561006,0.01452,68960.0,68955.0,0.014509]
[1771034561312,0.01452,68960.0,68954.0,0.01451]
[1771034561510,0.014507,68968.0,68959.0,0.014509]
[1771034561810,0.014508,68964.0,68959.0,0.01452]
[1771034562216,0.014508,68963.0,68959.0,0.01452]
[1771034563516,0.014508,68963.0,68959.0,0.02452]
[1771034564116,0.014508,68963.0,68959.0,0.02352]
[1771034564318,0.014508,68962.0,68959.0,0.02352]
[1771034564819,0.014508,68962.0,68959.0,0.02452]
[1771034565622,0.014508,68962.0,68952.0,0.14512]
[1771034565623,0.014509,68957.0,68952.0,0.14512]
[1771034565820,0.029018,68959.0,68952.0,0.15964]
[1771034566015,0.01451,68952.0,68949.0,0.01452]
[1771034566212,0.014511,68951.0,68949.0,0.01452]
[1771034566413,0.01379673,68949.0,68947.0,0.01452]
[1771034566609,0.014511,68950.0,68947.0,0.01452]
[1771034567414,0.014511,68950.0,68947.0,0.03352]
[1771034567814,0.014511,68950.0,68946.0,0.01452]
[1771034568013,0.014511,68948.0,68943.0,0.01452]
[1771034568521,0.014511,68949.0,68943.0,0.029032]
[1771034569215,0.014511,68948.0,68943.0,0.01452]
[1771034569416,0.014511,68949.0,68943.0,0.01452]
[1771034569720,0.014511,68947.0,68942.0,0.01452]
[1771034570116,0.014511,68949.0,68942.0,0.029032]
[1771034570315,0.004,68948.0,68942.0,0.043544]
[1771034570516,0.014512,68947.0,68942.0,0.01452]
[1771034570822,0.019512,68947.0,68942.0,0.01452]
[1771034572124,0.019512,68947.0,68942.0,0.029032]
[1771034572426,0.014512,68947.0,68942.0,0.029032]
[1771034573025,0.018512,68947.0,68942.0,0.029032]
[1771034573426,0.018512,68947.0,68941.0,0.01452]
[1771034573827,0.014512,68946.0,68941.0,0.01452]
[1771034574727,0.018511,68947.0,68941.0,0.01452]
[1771034576129,0.004,68946.0,68941.0,0.029033]
[1771034576633,0.014511,68947.0,68941.0,0.029033]
[1771034576933,0.018511,68947.0,68941.0,0.029033]
[1771034577234,0.014511,68947.0,68941.0,0.01452]
[1771034577533,0.004,68946.0,68941.0,0.01452]
[1771034577725,0.004,68946.0,68940.0,0.029026]
[1771034578121,0.004,68946.0,68941.0,0.014513]
[1771034578736,0.004,68946.0,68940.0,0.014513]
[1771034578934,0.021511,68947.0,68940.0,0.014513]
[1771034579430,0.01452,68946.0,68943.0,0.014512]
[1771034579822,0.014511,68950.0,68943.0,0.014512]
[1771034580031,0.007,68947.0,68943.0,0.014512]
[1771034580231,0.01452,68946.0,68943.0,0.014512]
[1771034580722,0.02252,68946.0,68943.0,0.014512]
[1771034581935,0.01452,68947.0,68943.0,0.014512]
[1771034582134,0.02452,68947.0,68943.0,0.014512]
[1771034582730,0.009,68946.0,68944.0,0.014512]
[1771034582930,0.01452,68948.0,68944.0,0.014512]
[1771034583432,0.009,68947.0,68944.0,0.014512]
[1771034584035,0.014511,68950.0,68944.0,0.029024]
[1771034584335,0.014511,68950.0,68944.0,0.014512]
[1771034584635,0.01452,68949.0,68944.0,0.014512]
[1771034584826,0.01452,68949.0,68944.0,0.029024]
[1771034585328,0.01452,68949.0,68944.0,0.014512]
[1771034585736,0.01451,68956.0,68950.0,0.1113848]
[1771034585933,0.01451,68956.0,68949.0,0.014511]
[1771034586736,0.014509,68958.0,68950.0,0.014511]
[1771034587338,0.14512,68964.0,68957.0,0.014509]
[1771034587643,0.174148,68964.0,68956.0,0.014509]
[1771034588140,0.15964,68964.0,68957.0,0.014509]
[1771034588528,0.15964,68964.0,68956.0,0.014509]
[1771034588529,0.014508,68963.0,68956.0,0.014509]
[1771034589240,0.180148,68964.0,68956.0,0.014509]
[1771034589851,0.174148,68964.0,68956.0,0.014509]
[1771034590051,0.011,68963.0,68956.0,0.014509]
[1771034590849,0.01452,68962.0,68956.0,0.014509]
[1771034591240,0.01452,68962.0,68953.0,0.01452]
[1771034591943,0.029028,68962.0,68955.0,0.01451]
[1771034592248,0.040028,68962.0,68955.0,0.01451]
[1771034592543,0.029028,68962.0,68955.0,0.01451]
[1771034592748,0.039028,68962.0,68955.0,0.01451]
[1771034593244,0.14512,68968.0,68955.0,0.01451]
[1771034593449,0.029027,68967.0,68955.0,0.01451]
[1771034593646,0.014508,68963.0,68955.0,0.01451]
[1771034593942,0.029028,68963.0,68955.0,0.01451]
[1771034594143,0.015508,68962.0,68955.0,0.01451]
[1771034594749,0.014508,68962.0,68955.0,0.01451]
[1771034595452,0.015508,68962.0,68955.0,0.01451]
[1771034596750,0.014508,68961.0,68955.0,0.01451]
[1771034597448,0.014508,68961.0,68955.0,0.01751]
[1771034600552,0.043536,68963.0,68956.0,0.014509]
[1771034601153,0.029028,68963.0,68956.0,0.014509]
[1771034601853,0.029028,68963.0,68956.0,0.022509]
[1771034602552,0.043536,68963.0,68956.0,0.022509]
[1771034603254,0.029028,68963.0,68956.0,0.022509]
[1771034604257,0.029028,68963.0,68956.0,0.026509]
[1771034606754,0.014504,68983.0,68968.0,0.014507]
[1771034606949,0.014506,68972.0,68964.0,0.029028]
[1771034607155,0.014506,68972.0,68965.0,0.014508]
[1771034607352,0.014506,68971.0,68965.0,0.014508]
[1771034607961,0.014506,68971.0,68968.0,0.03]
[1771034608458,0.014506,68973.0,68965.0,0.032508]
[1771034608656,0.014506,68971.0,68965.0,0.032508]
[1771034608861,0.014506,68971.0,68965.0,0.014508]
[1771034609058,0.01452,68974.0,68968.0,0.022]
[1771034609363,0.014506,68972.0,68968.0,0.022]
[1771034609662,0.014506,68973.0,68968.0,0.022]
[1771034610660,0.029026,68974.0,68968.0,0.022]
[1771034611156,0.09217658,68987.0,68968.0,0.022]
[1771034611459,0.09217658,68987.0,68976.0,0.014505]
[1771034611460,0.014504,68984.0,68976.0,0.014505]
[1771034611664,0.014503,68985.0,68978.0,0.014505]
[1771034611966,0.043526,68986.0,68978.0,0.014505]
[1771034612152,0.029023,68986.0,68978.0,0.014505]
[1771034612353,0.014503,68985.0,68978.0,0.014505]
[1771034612862,0.01452,68986.0,68978.0,0.015]
[1771034612863,0.029008,68983.0,68978.0,0.015]
[1771034613064,0.01452,68982.0,68978.0,0.015]
[1771034613453,0.00951998,68982.0,68978.0,0.015]
[1771034614666,0.02402398,68982.0,68978.0,0.015]
[1771034615166,0.02402398,68982.0,68975.0,0.014505]
[1771034615366,0.029024,68982.0,68978.0,0.01]
[1771034615767,0.043528,68982.0,68975.0,0.014505]
[1771034615965,0.014504,68981.0,68978.0,0.01]
[1771034617065,0.014504,68981.0,68975.0,0.011]
[1771034617363,0.01452,68982.0,68975.0,0.025505]
[1771034617552,0.006012,68982.0,68976.0,0.014505]
[1771034618658,0.014504,68980.0,68978.0,0.01]
[1771034618951,0.014504,68981.0,68976.0,0.011]
[1771034619563,0.014504,68982.0,68976.0,0.014505]
[1771034619872,0.014504,68982.0,68976.0,0.025505]
[1771034620164,0.014504,68982.0,68976.0,0.04001]
[1771034620361,0.014504,68981.0,68976.0,0.025505]
[1771034620858,0.029008,68981.0,68976.0,0.011]
[1771034621366,0.014504,68981.0,68976.0,0.025505]
[1771034621566,0.014504,68982.0,68977.0,0.014505]
[1771034622165,0.029024,68983.0,68977.0,0.014505]
[1771034622669,0.014504,68983.0,68977.0,0.014505]
[1771034622965,0.01452,68983.0,68978.0,0.02901]
[1771034623260,0.01452,68985.0,68980.0,0.014504]
[1771034623468,0.014502,68992.0,68986.0,0.014503]
[1771034623660,0.014502,68992.0,68985.0,0.014503]
[1771034624364,0.014502,68991.0,68985.0,0.01452]
[1771034624559,0.029022,68992.0,68985.0,0.029023]
[1771034624866,0.01452,68997.0,68991.0,0.014502]
[1771034625062,0.01452,68997.0,68988.0,0.01452]
[1771034625063,0.014502,68992.0,68988.0,0.01452]
[1771034625365,0.029004,68992.0,68988.0,0.01452]
[1771034625556,0.014502,68992.0,68988.0,0.01452]
[1771034625965,0.1208428,68996.0,68988.0,0.01452]
[1771034626264,0.014502,68993.0,68986.0,0.029023]
[1771034626653,0.014502,68993.0,68991.0,0.001]
[1771034627060,0.014502,68994.0,68991.0,0.001]
[1771034627364,0.014501,68995.0,68988.0,0.014503]
[1771034627761,0.014501,68995.0,68988.0,0.025503]
[1771034627968,0.01452,68995.0,68989.0,0.014502]
[1771034628167,0.01452,68995.0,68991.0,0.009]
[1771034628358,0.014502,68994.0,68991.0,0.009]
[1771034628561,0.014502,68992.0,68991.0,0.009]
[1771034628866,0.014502,68992.0,68988.0,0.011]
[1771034629268,0.014502,68993.0,68986.0,0.029023]
[1771034629466,0.014502,68993.0,68991.0,0.009]
[1771034630771,0.014502,68993.0,68986.0,0.043526]
[1771034630967,0.014502,68993.0,68988.0,0.011]
[1771034631468,0.014502,68993.0,68991.0,0.009]
[1771034631975,0.029004,68993.0,68988.0,0.011]
[1771034632273,0.014502,68993.0,68988.0,0.011]
[1771034632567,0.014502,68993.0,68991.0,0.009]
[1771034634166,0.014502,68993.0,68988.0,0.011]
[1771034634667,0.014502,68993.0,68986.0,0.029023]
[1771034634870,0.014502,68993.0,68991.0,0.009]
[1771034635372,0.014502,68993.0,68988.0,0.011]
[1771034635866,0.014502,68993.0,68991.0,0.009]
[1771034637372,0.014502,68993.0,68988.0,0.011]
[1771034637964,0.014502,68993.0,68991.0,0.009]
[1771034638477,0.014502,68993.0,68987.0,0.014503]
[1771034638676,0.014502,68993.0,68988.0,0.011]
[1771034639171,0.014502,68993.0,68987.0,0.014503]
[1771034639776,0.014502,68993.0,68991.0,0.009]
[1771034640462,0.014502,68993.0,68987.0,0.014503]
[1771034640661,0.014502,68993.0,68987.0,0.025503]
[1771034641381,0.029021,68995.0,68989.0,0.014503]
[1771034642069,0.029021,68995.0,68989.0,0.029023]
[1771034642266,0.0145,69001.0,68994.0,0.014501]
[1771034642574,0.0145,69000.0,68994.0,0.01452]
[1771034643074,0.0145,69001.0,68994.0,0.029021]
[1771034643270,0.0145,69000.0,68994.0,0.01452]
[1771034644575,0.0145,68999.0,68994.0,0.02552]
[1771034646783,0.014501,68997.0,68994.0,0.02552]
[1771034647978,0.0145,68999.0,68994.0,0.02552]
[1771034649079,0.029001,68999.0,68994.0,0.02552]
[1771034649466,0.014501,68998.0,68994.0,0.02552]
[1771034650577,0.0145,69000.0,68994.0,0.02552]
[1771034650777,0.0145,69001.0,68995.0,0.014501]
[1771034651076,0.0145,69001.0,68994.0,0.040021]
[1771034651272,0.01452,69002.0,68994.0,0.040021]
[1771034651478,0.0145,69001.0,68994.0,0.040021]
[1771034652680,0.0145,69000.0,68994.0,0.02552]
[1771034652873,0.029,69001.0,68994.0,0.040021]
[1771034653073,0.0145,69001.0,68994.0,0.040021]
[1771034654379,0.02902,69002.0,68994.0,0.040021]
[1771034654579,0.0145,69001.0,68994.0,0.040021]
[1771034654778,0.0145,69001.0,68994.0,0.029021]
[1771034654980,0.0145,69000.0,68994.0,0.02552]
[1771034655179,0.0145,69001.0,68994.0,0.040021]
[1771034655379,0.0145,69000.0,68994.0,0.01452]
[1771034655681,0.0145,69000.0,68994.0,0.02552]
[1771034655882,0.0145,69001.0,68994.0,0.040021]
[1771034656181,0.0145,69000.0,68994.0,0.02552]
[1771034657076,0.0145,69000.0,68994.0,0.040021]
[1771034657383,0.0145,69001.0,68994.0,0.040021]
[1771034657879,0.0145,69000.0,68994.0,0.02552]
[1771034658080,0.0145,69001.0,68994.0,0.040021]
[1771034658383,0.0145,69000.0,68994.0,0.02552]
[1771034658683,0.0145,69000.0,68994.0,0.01452]
[1771034658881,0.0145,69000.0,68994.0,0.02552]
[1771034659190,0.0145,69000.0,68994.0,0.040021]
[1771034659482,0.0145,69000.0,68994.0,0.02552]
[1771034660181,0.0145,69000.0,68994.0,0.040021]
[1771034660382,0.0145,69000.0,68994.0,0.02552]
[1771034660584,0.014501,68999.0,68994.0,0.02552]
[1771034661478,0.014501,68997.0,68994.0,0.02552]
[1771034662487,0.014501,68997.0,68994.0,0.01452]
[1771034662686,0.014501,68998.0,68994.0,0.02552]
[1771034663989,0.01452,69002.0,68997.0,0.014501]
[1771034664676,0.01452,69002.0,68996.0,0.014501]
[1771034665286,0.01452,69002.0,68997.0,0.009]
[1771034665681,0.0145,69001.0,68997.0,0.009]
[1771034665880,0.0145,69004.0,68996.0,0.01]
[1771034666186,0.02902,69004.0,68996.0,0.01]
[1771034666785,0.0145,69002.0,68996.0,0.01]
[1771034666985,0.029,69002.0,68996.0,0.01]
[1771034667280,0.0145,69002.0,68996.0,0.01]
[1771034667486,0.0145,69002.0,68997.0,0.009]
[1771034667880,0.0145,69002.0,68995.0,0.014501]
[1771034668086,0.0145,69002.0,68996.0,0.011]
[1771034668487,0.0145,69002.0,68995.0,0.014501]
[1771034668686,0.0145,69002.0,68997.0,0.01]
[1771034669791,0.0145,69001.0,68997.0,0.01]
[1771034670180,0.0145,69000.0,68996.0,0.011]
[1771034670492,0.0145,69000.0,68990.0,0.14504]
[1771034670785,0.014501,68996.0,68989.0,0.014502]
[1771034670986,0.029002,68996.0,68989.0,0.014502]
[1771034671181,0.014501,68995.0,68988.0,0.029023]
[1771034671579,0.014501,68995.0,68988.0,0.01452]
[1771034672183,0.014501,68996.0,68988.0,0.01452]
[1771034672483,0.091837,68997.0,68979.0,0.014504]
[1771034672484,0.014503,68987.0,68979.0,0.014504]
[1771034672685,0.014503,68987.0,68980.0,0.01452]
[1771034672879,0.014503,68989.0,68981.0,0.01452]
[1771034672880,0.014503,68985.0,68981.0,0.01452]